Cogmind - Beta 14 @@@ ROGUE MODE // 2024.08.09 @ 15:08:43 Player: Some Pennies Result: Destroyed by AG-03199 with Assembled Focal Cannon Performance ------------- Evolutions (3) 1500 Regions Visited (8) 1600 Robots Destroyed (102) 510 Value Destroyed (2701) 2701 Prototype IDs (19) 380 Alien Tech Used (0) 0 Bonus (2594) 2594 TOTAL SCORE: 9285 Bonus ------- High Alert Combat Kills 109 Follower Combat Kills 185 Met Imprinter 300 Destroyed Z-Imprinter 1000 Triggered Deep Caves Wall 500 Exposed GOLEM Chamber 500 Cogmind --------- Core Integrity 0/700 Matter 141/300 Energy 524/700 System Corruption 0% Temperature Cool (12) Movement Hovering (60) Location -7/Deep Caves Parts ------- > --- POWER (2) -------- (None) > --- PROPULSION (4) --- Zionite Glidesys I > --- UTILITY (5) ------ Zionite Biocell Experimental Thermal Shield > --- WEAPON (2) ------- Cooled Particle Cannon Gauss Rifle > --- INVENTORY (5) ---- Zionite Metafield Generator Tactical Coordination Suite Peak State ------------ > --- POWER ------------ Light Angular Momentum Engine Zionite Light DM Reactor > --- PROPULSION ------- Enhanced Flexi-carbon Leg Zionite Glidesys I Zionite Glidesys I Zionite Glidesys I > --- UTILITY ---------- Experimental Heat Sink Medium Storage Unit Zionite Heavy Carapace Experimental Thermal Shield > --- WEAPON ----------- EM Pulse Cannon EM Pulse Cannon > --- INVENTORY -------- Light Deuterium Engine Zionite Biocell Zionite Metafield Generator Tactical Coordination Suite Zionite Weapon Casing Cooled Particle Cannon Cooled Particle Cannon Heavy Missile Launcher Heavy Missile Launcher Phasing Sabre [Rating: 78] Favorites ----------- Power Light Deuterium Engine Engine Light Deuterium Engine Power Core Light Nuclear Core Reactor Zionite Light DM Reactor Propulsion Light Treads Treads Light Treads Leg Makeshift Leg Wheel Compact Wheel Hover Unit Zionite Glidesys I Flight Unit Improved VTOL Module Utility Huge Storage Unit Device Seismic Detector Storage Huge Storage Unit Processor Improved Signal Interpreter Hackware Hacking Suite Protection Improved Light Armor Plating Weapon Subdweller Beam Cannon Energy Gun Small Laser Energy Cannon Subdweller Beam Cannon Ballistic Gun Heavy Battle Rifle Ballistic Cannon Battle Cannon Launcher Heavy Missile Launcher Special Weapon Plasma Cutter Slashing Weapon Phasing Sabre Piercing Weapon Makeshift Spear Special Melee Weapon Improved Datajack Build | -11 -10 -10 -8 -7 -7 -7 -7 -7 ------- Run | Yrd Mat Sub Mat Fac Low Low Zio Dee Slots Evolved 6 | . . . 4 2 . . . . Power 1 | . . . . 1 . . . . Propulsion 2 | . . . 2 . . . . . Utility 3 | . . . 2 1 . . . . Weapon . | . . . . . . . . . Parts Attached 163 | 8 9 12 53 22 . . 7 52 Power 18 | 1 1 3 6 2 . . . 5 Engine 12 | 1 1 3 3 1 . . . 3 Core 4 | . . . 3 1 . . . . Reactor 2 | . . . . . . . . 2 Propulsion 48 | 3 2 2 24 7 . . . 10 Treads 20 | 2 2 1 13 2 . . . . Leg 12 | . . 1 8 . . . . 3 Wheel 2 | 1 . . 1 . . . . . Hover 7 | . . . . . . . . 7 Flight 7 | . . . 2 5 . . . . Utility 48 | 2 2 3 13 7 . . 1 20 Device 18 | 1 . . 6 1 . . 1 9 Storage 8 | 1 2 1 . 2 . . . 2 Processor 1 | . . . . 1 . . . . Hackware 3 | . . . . 3 . . . . Protection 18 | . . 2 7 . . . . 9 Artifact . | . . . . . . . . . Weapon 49 | 2 4 4 10 6 . . 6 17 Energy Gun 7 | 1 . 1 . 1 . . . 4 Energy Cannon 19 | . 1 1 5 1 . . 2 9 Ballistic Gun 12 | 1 3 2 4 . . . . 2 Ballistic Cannon 2 | . . . 1 . . . 1 . Launcher 2 | . . . . . . . . 2 Special Weapon 2 | . . . . 1 . . 1 . Impact Weapon . | . . . . . . . . . Slashing Weapon 1 | . . . . . . . 1 . Piercing Weapon 2 | . . . . 1 . . 1 . Special Melee Weapon 2 | . . . . 2 . . . . Unidentified Prototypes 17 | . . . 3 2 . . . 12 Parts Lost 31 | . 2 3 4 . . . . 22 Power 5 | . . . 1 . . . . 4 Propulsion 13 | . 2 2 2 . . . . 7 Utility 8 | . . 1 . . . . . 7 Weapon 5 | . . . 1 . . . . 4 Highest Loss Streak 12 | . 1 2 1 . . . . 12 To Critical Strikes 1 | . . 1 . . . . . . Average Slot Usage (%) 96 | . 99 98 98 92 92 92 91 84 Engine 9 | . 14 13 6 3 7 7 7 5 Core 1 | . . . 2 3 . . . . Treads 19 | . 27 20 28 . . . . . Leg 4 | . . 6 6 . . . . 1 Hover 1 | . . . . . . . . 17 Flight 3 | . . . . 29 30 30 30 7 Device 8 | . 14 . 17 3 . . 2 8 Storage 11 | . 14 14 9 7 7 7 7 6 Processor 1 | . . . . 4 7 7 7 5 Hackware 2 | . . . . 21 23 23 19 5 Protection 7 | . . 13 8 . . . . 5 Energy Cannon 10 | . 6 14 12 . . . . 12 Ballistic Gun 9 | . 20 13 4 . . . . . Peak Build Rating 78 | 7 9 20 39 44 40 40 47 78 Average Rating 25 | 5 8 16 30 40 40 40 42 58 On Entrance 25 | . 7 9 20 31 40 40 40 46 Naked Turns . | . . . . . . . . . Heaviest Build 106 | 14 51 100 106 24 18 18 34 56 Greatest Support 80 | 40 40 40 80 20 20 20 20 56 Greatest Overweight (x) 11 | . 1 4 1 1 . . 11 11 Average Overweight (x) . | . . 2 1 . . . . . Largest Inventory Capacity 25 | 8 20 25 25 25 10 10 10 10 Average Capacity 20 | 7 18 23 25 10 10 10 10 9 Most Carried 25 | 5 20 25 25 24 10 10 10 10 Average Carried 19 | 2 15 23 24 10 10 10 9 9 Final Capacity 25 | 8 20 25 25 10 10 10 10 5 Final Carried 25 | 4 20 25 25 10 10 10 10 2 Class Distribution -------------------- 58% | Scavenger-Mutant 33% | Mutant 6% | Hacker-Sprinter Dominant Class ---------------- Scavenger-Mutant | -10/Materials Mutant | -10/Subcaves Scavenger-Mutant | -8/Materials Scavenger-Sprinter | -7/Factory Hacker-Sprinter | -7/Lower Caves Hacker-Sprinter | -7/Lower Caves Hacker-Sprinter | -7/Zion Scavenger-Mutant | -7/Deep Caves Resources | -11 -10 -10 -8 -7 -7 -7 -7 -7 ----------- Run | Yrd Mat Sub Mat Fac Low Low Zio Dee Matter Collected 2323 | 301 404 237 732 220 . . . 429 Remotely . | . . . . . . . . . Salvage Created 3960 | 121 743 500 1920 408 . . . 268 Parts 228 | 6 49 29 115 25 . . . 4 Haulers Intercepted 11 | . 2 . 5 4 . . . . Recyclers Shooed 4 | . 1 . 2 1 . . . . Parts Field Recycled . | . . . . . . . . . Retrieved Matter . | . . . . . . . . . Parts Self-Destructed 25 | . . 18 . . . 7 . . Prevented . | . . . . . . . . . Kills | -11 -10 -10 -8 -7 -7 -7 -7 -7 ------- Run | Yrd Mat Sub Mat Fac Low Low Zio Dee Combat Hostiles Destroyed 88 | . 16 14 31 . . . . 27 Guns 29 | . 15 5 5 . . . . 4 Cannons 36 | . 1 9 25 . . . . 1 AOE 21 | . . . . . . . . 21 Classes Destroyed 15 | 2 6 1 4 . . . . 2 Worker 4 | . 2 . 1 1 . . . . Builder 4 | . . . 3 1 . . . . Tunneler 4 | 3 . . 1 . . . . . Hauler 11 | . 2 . 5 4 . . . . Recycler 6 | 1 1 . 3 1 . . . . Operator 4 | . 1 . 3 . . . . . Watcher 7 | . 2 . 3 2 . . . . Swarmer 16 | . 6 3 7 . . . . . Grunt 25 | . 10 1 14 . . . . . Brawler 1 | . . . 1 . . . . . Sentry 7 | . . . 7 . . . . . Hunter 2 | . . . 2 . . . . . Subdweller 10 | . . 10 . . . . . . Z-Technician 2 | . . . . . . . . 2 Assembled 26 | . . . . . . . . 26 Golem 1 | . . . . . . . . 1 Best Kill Streak 15 | 2 5 3 5 2 . . . 15 Combat Bots Only 15 | . 5 3 5 . . . . 15 Max Kills in Single Turn 8 | 1 2 1 2 1 . . . 8 Gunslinging 1 | . 1 . . . . . . . Exploded 8 | . . . . . . . . 8 Melee . | . . . . . . . . . Uniques/NPCs Destroyed 1 | . . . . . . . . 1 Z-Imprinter (-7/Deep Caves) Combat | -11 -10 -10 -8 -7 -7 -7 -7 -7 -------- Run | Yrd Mat Sub Mat Fac Low Low Zio Dee Hostile Shots Fired 527 | . 91 57 149 43 6 . . 181 Missed 169 | . 32 19 42 21 2 . . 53 Damage Taken 5919 | . 610 821 1365 255 64 . . 2804 Core 1057 | . 99 121 127 104 31 . . 575 Absorbed by Shields 156 | . . . 156 . . . . . Redirected to Shielding 156 | . . 15 . . . . . 141 Ignored by Resistances 266 | . . . . . . . . 266 Regen/Repaired (Parts) 190 | . 120 . 70 . . . . . Core Remaining (%) 62 | 100 . 12 76 . . . . . Volleys Fired 292 | 11 91 41 118 . . . . 31 Largest 2 | 2 2 2 2 . . . . 2 Hottest 160 | 60 80 113 160 . . . . 126 Shots Fired 566 | 22 182 76 230 . . . . 56 Gun 301 | 22 165 40 50 . . . . 24 Cannon 261 | . 17 36 180 . . . . 28 Launcher 4 | . . . . . . . . 4 Special . | . . . . . . . . . Kinetic 275 | 11 147 40 64 . . . . 13 Thermal 277 | 11 35 36 166 . . . . 29 Explosive 4 | . . . . . . . . 4 Electromagnetic 10 | . . . . . . . . 10 Robot Hit Streak 11 | 7 11 10 9 . . . . 6 Robot Miss Streak 6 | 2 6 3 5 . . . . 3 Penetration Max 1 | . . . . . . . . 1 Secondary Targets 1 | . 1 . . . . . . . Max Gunslinging Chain 1 | . 1 . . . . . . . Shots Hit Robots 348 | 17 102 44 129 22 . . . 34 Core Hits 184 | 5 43 19 62 8 . . . 47 Critical Kills 2 | . . . 2 . . . . . Critical Parts Destroyed 1 | . 1 . . . . . . . Critical Strikes 5 | . 1 . 2 2 . . . . Meltdown 2 | . . . 2 . . . . . Destroy 1 | . 1 . . . . . . . Impale 2 | . . . . 2 . . . . Melee Attacks 34 | . . . . 33 . . 1 . Impact . | . . . . . . . . . Slashing . | . . . . . . . . . Piercing 33 | . . . . 32 . . 1 . Sneak Attacks 12 | . . . . 12 . . . . Combat Hostiles . | . . . . . . . . . Follow-up Attacks . | . . . . . . . . . Damage Inflicted 9059 | 200 1234 864 3190 1053 . . . 2518 Guns 2499 | 200 1039 336 579 . . . . 345 Cannons 3724 | . 195 528 2606 . . . . 395 Explosions 1778 | . . . . . . . . 1778 Melee 1053 | . . . . 1053 . . . . Ramming 5 | . . . 5 . . . . . Kinetic 2254 | 90 903 336 783 . . . . 142 Thermal 3880 | 110 331 528 2402 . . . . 509 Explosive 1708 | . . . . . . . . 1708 Electromagnetic 159 | . . . . . . . . 159 Impact . | . . . . . . . . . Slashing . | . . . . . . . . . Piercing 1053 | . . . . 1053 . . . . Highest Corruption . | . . . . . . . . . Average Corruption . | . . . . . . . . . Corruption Purged . | . . . . . . . . . Corruption Blocked . | . . . . . . . . . Overload Shots . | . . . . . . . . . Overflow Damage 247 | . . . 60 75 . . . 112 Projectiles 78 | . . . 60 . . . . 18 Explosions 94 | . . . . . . . . 94 Melee 75 | . . . . 75 . . . . Knockbacks 3 | . . . 3 . . . . . Impact 1 | . . . 1 . . . . . Kinetic 2 | . . . 2 . . . . . Secondary . | . . . . . . . . . Self-Inflicted Damage 143 | . . . . . . . . 143 Shots 3 | . . . . . . . . 3 Rammed 1 | . 1 . . . . . . . Targets Rammed 2 | . 1 . 1 . . . . . Kicked . | . . . . . . . . . Crushed 1 | . . . 1 . . . . . Highest Temperature 332 | . 159 51 332 2 15 . . 231 Average Temperature 74 | . 45 19 90 2 7 . . 120 Received Heat Transfer 1268 | . 246 150 503 63 36 . . 270 Effects 1 | . . . 1 . . . . . Energy Bleed 1 | . . . 1 . . . . . Siege Activations . | . . . . . . . . . Robots Corrupted 1 | . . . . . . . . 1 Combat Hostiles 1 | . . . . . . . . 1 Parts Fried . | . . . . . . . . . Impact Corruptions . | . . . . . . . . . Robots Melted 2 | . . . 2 . . . . . Combat Hostiles 1 | . . . 1 . . . . . Parts Melted 10 | . . 2 8 . . . . . Heat Transferred 6027 | 250 732 851 3580 . . . . 614 Parts Sabotaged . | . . . . . . . . . Parts Stolen . | . . . . . . . . . Parts Stripped . | . . . . . . . . . Power Chain Reactions 1 | . . . . . . . . 1 Alert | -11 -10 -10 -8 -7 -7 -7 -7 -7 ------- Run | Yrd Mat Sub Mat Fac Low Low Zio Dee Peak Influence 571 | 20 251 . 566 571 . . . . Initial 245 | . 13 . . 245 . . . . Average 275 | 8 132 . 349 370 . . . . Maximum Alert Level 2 | . 1 . 2 2 . . . . Low Security (%) 43 | 100 84 . 25 . . . . . Level 1 23 | . 15 . 23 63 . . . . Level 2 32 | . . . 51 36 . . . . Level 3 . | . . . . . . . . . Level 4 . | . . . . . . . . . Level 5 . | . . . . . . . . . High Security . | . . . . . . . . . Max Security . | . . . . . . . . . Squads Dispatched 13 | . 3 . 4 6 . . . . Investigation 4 | . 2 . 1 1 . . . . Extermination 1 | . . . . 1 . . . . Reinforcement 4 | . 1 . 1 2 . . . . Assault 2 | . . . 2 . . . . . Garrison 2 | . . . . 2 . . . . Intercept . | . . . . . . . . . Searches Triggered . | . . . . . . . . . Construction Impeded . | . . . . . . . . . Haulers Reinforced 2 | . . . . 2 . . . . Active Scanning Responses . | . . . . . . . . . Cargo Convoy Interrupts . | . . . . . . . . . Stealth | -11 -10 -10 -8 -7 -7 -7 -7 -7 --------- Run | Yrd Mat Sub Mat Fac Low Low Zio Dee Distress Signals 3 | . . . 3 . . . . . Communications Jammed . | . . . . . . . . . Distress Signals . | . . . . . . . . . Times Spotted 183 | . 32 14 47 20 11 . . 59 Peak Tracking Total 38 | . 4 3 5 5 7 . . 38 Tactical Retreats 19 | . 3 . 2 8 2 . . 4 Traps | -11 -10 -10 -8 -7 -7 -7 -7 -7 ------- Run | Yrd Mat Sub Mat Fac Low Low Zio Dee Traps Triggered 5 | . 1 1 3 . . . . . Indirectly . | . . . . . . . . . Trap Hack Attempts . | . . . . . . . . . Triggered . | . . . . . . . . . Disarmed . | . . . . . . . . . Reprogrammed . | . . . . . . . . . Reused . | . . . . . . . . . Traps Extracted . | . . . . . . . . . Installed . | . . . . . . . . . Triggered . | . . . . . . . . . Machines | -11 -10 -10 -8 -7 -7 -7 -7 -7 ---------- Run | Yrd Mat Sub Mat Fac Low Low Zio Dee Machines Disabled 8 | . . . 3 . . . 3 2 Max in Single Turn 2 | . . . 2 . . . 1 . Garrison Access 1 | . . . 1 . . . . . Machines Repaired . | . . . . . . . . . Machines Dismantled 3 | . . . . . . . 3 . Machines Sabotaged . | . . . . . . . . . Overloaded Fab Kills . | . . . . . . . . . Hacking | -11 -10 -10 -8 -7 -7 -7 -7 -7 --------- Run | Yrd Mat Sub Mat Fac Low Low Zio Dee Machines Accessed 31 | . 8 1 12 9 . . 1 . Terminals 19 | . 5 . 7 7 . . . . Fabricators 2 | . . . . 2 . . . . Repair Stations 2 | . 1 . 1 . . . . . Recycling Units 4 | . 2 . 2 . . . . . Scanalyzers 1 | . . . 1 . . . . . Garrison Access 1 | . . . 1 . . . . . Total Hacks 92 | . 25 4 38 21 . . 4 . Successful 58 | . 17 4 23 10 . . 4 . Failed 34 | . 8 . 15 11 . . . . Catastrophic 1 | . . . 1 . . . . . Database Lockouts . | . . . . . . . . . Manual 36 | . 10 . 18 7 . . 1 . Terminals 56 | . 14 . 26 16 . . . . Fabricators 5 | . . . . 5 . . . . Repair Stations 8 | . 6 . 2 . . . . . Recycling Units 10 | . 5 . 5 . . . . . Scanalyzers 4 | . . . 4 . . . . . Garrison Access 1 | . . . 1 . . . . . Terminal Hacks 20 | . 4 4 4 4 . . 4 . Record 4 | . . 4 . . . . . . Part Schematic 5 | . . . . 1 . . 4 . Robot Analysis 1 | . . . 1 . . . . . Prototype ID Bank 1 | . 1 . . . . . . . Branch Access Points 1 | . . . . 1 . . . . Emergency Access Points 2 | . 1 . 1 . . . . . Terminal Index 1 | . . . 1 . . . . . Alert Level 1 | . . . 1 . . . . . Locate Traps 2 | . 1 . . 1 . . . . Recall Extermination 1 | . . . . 1 . . . . Zone Layout 1 | . 1 . . . . . . . Fabricator Hacks 4 | . . . . 4 . . . . Network Status 1 | . . . . 1 . . . . Load Schematic 1 | . . . . 1 . . . . Build 2 | . . . . 2 . . . . Repair Station Hacks 6 | . 4 . 2 . . . . . Scan Component 3 | . 2 . 1 . . . . . Repair 3 | . 2 . 1 . . . . . Recycling Unit Hacks 2 | . 1 . 1 . . . . . Retrieve Components 2 | . 1 . 1 . . . . . Scanalyzer 4 | . . . 4 . . . . . Insert Component 2 | . . . 2 . . . . . Analyze 2 | . . . 2 . . . . . Garrison Access Hacks 1 | . . . 1 . . . . . Seal Access 1 | . . . 1 . . . . . Unauthorized Hacks 21 | . 8 . 11 2 . . . . Terminals 17 | . 6 . 10 1 . . . . Assimilate 1 | . . . 1 . . . . . Botnet 4 | . . . 3 1 . . . . Disrupt 1 | . 1 . . . . . . . Operators 1 | . . . 1 . . . . . Skim 10 | . 5 . 5 . . . . . Fabricators 1 | . . . . 1 . . . . Prioritize 1 | . . . . 1 . . . . Repair Stations . | . . . . . . . . . Recycling Units 3 | . 2 . 1 . . . . . Tunnel 3 | . 2 . 1 . . . . . Scanalyzers . | . . . . . . . . . Garrison Access . | . . . . . . . . . Data Cores Recovered . | . . . . . . . . . Used . | . . . . . . . . . Hacking Detections 24 | . 8 . 9 7 . . . . Full Trace Events 2 | . . . 1 1 . . . . Feedback Events . | . . . . . . . . . Feedback Blocked . | . . . . . . . . . Robot Schematics Acquired 4 | . . . . . . . 4 . Robots Built . | . . . . . . . . . Authchips . | . . . . . . . . . Time . | . . . . . . . . . Total Robot Build Rating . | . . . . . . . . . Part Schematics Acquired 22 | . . . 2 1 . . 19 . Parts Built 4 | . . . . 4 . . . . Authchips . | . . . . . . . . . Time 137 | . . . . 137 . . . . Total Part Build Rating 16 | . . . . 16 . . . . Parts Repaired 3 | . 2 . 1 . . . . . Time 78 | . 52 . 26 . . . . . Parts Recycled . | . . . . . . . . . Recycled Matter . | . . . . . . . . . Retrieved Matter . | . . . . . . . . . Retrieved Components 19 | . 10 . 9 . . . . . Parts Scanalyzed 2 | . . . 2 . . . . . Part Schematics Acquired 2 | . . . 2 . . . . . Parts Damaged . | . . . . . . . . . Bothacking | -11 -10 -10 -8 -7 -7 -7 -7 -7 ------------ Run | Yrd Mat Sub Mat Fac Low Low Zio Dee Used RIF Installer . | . . . . . . . . . Robots Hacked 1 | . . . . 1 . . . . Non-combat 1 | . . . . 1 . . . . Combat . | . . . . . . . . . Robot Hacks Applied 1 | . . . . 1 . . . . find_recycling 1 | . . . . 1 . . . . Relay Couplers Released . | . . . . . . . . . Fabnet Peak Effective % . | . . . . . . . . . Robots Rewired . | . . . . . . . . . Allies Hacked . | . . . . . . . . . Hacks Repelled . | . . . . . . . . . Allies | -11 -10 -10 -8 -7 -7 -7 -7 -7 -------- Run | Yrd Mat Sub Mat Fac Low Low Zio Dee Total Allies 7 | . . . . . . . 7 . Largest Group 7 | . . . . . . . 7 7 Highest-Rated Group 319 | . . . . . . . 319 319 Highest-Rated Ally 96 | . . . . . . . 96 96 Total Orders . | . . . . . . . . . Ally Attacks 74 | . . . . . . . . 74 Total Damage 1326 | . . . . . . . . 1326 Kills 8 | . . . . . . . . 8 Allies Corrupted . | . . . . . . . . . Allies Melted . | . . . . . . . . . Intel | -11 -10 -10 -8 -7 -7 -7 -7 -7 ------- Run | Yrd Mat Sub Mat Fac Low Low Zio Dee Robot Analysis Total 1 | . . . 1 . . . . . Derelict Logs Recovered 4 | . . 2 . . . 2 . . Drone Launches . | . . . . . . . . . Drone Recoveries . | . . . . . . . . . Exploration | -11 -10 -10 -8 -7 -7 -7 -7 -7 ------------- Run | Yrd Mat Sub Mat Fac Low Low Zio Dee Turns Passed 10985 | 143 1729 3746 3240 448 102 76 467 1034 Spaces Moved 6444 | 78 585 1003 1129 1015 379 280 973 1002 Core 121 | 2 . . . . . . 2 117 Treads 2554 | 29 585 1003 937 . . . . . Legs 201 | . . . 192 . . . . 9 Wheels 47 | 47 . . . . . . . . Hover 759 | . . . . . . . . 759 Flight 2762 | . . . . 1015 379 280 971 117 Fastest Speed 27 | 50 160 240 210 27 27 27 27 48 Average Speed 140 | 121 222 356 235 27 27 27 34 63 Slowest Speed 600 | 160 240 480 242 97 27 27 600 600 Overloaded Moves . | . . . . . . . . . Propulsion Burnouts . | . . . . . . . . . Robots Hopped 9 | . . . . 7 2 . . . Cave-ins Triggered . | . . . . . . . . . Exploration Rate (%) 57 | 4 86 67 69 32 50 49 87 77 Regions Visited 8 Branch Regions 5 Pre-discovered Areas 9 | . 5 1 1 . . . 2 . Known Exits Taken 5 | . 1 1 . 1 . 1 1 . Unknown Exits Taken 3 | 1 . . 1 . 1 . . . Scrap Searched 10 | . . 5 . . 1 1 3 . Spaces Dug 4 | . . 1 . 3 . . . . Terrain Destroyed 72 | . . 2 46 3 . . . 21 Melee 3 | . . . . 3 . . . . Projectile 54 | . . 2 46 . . . . 6 AOE 15 | . . . . . . . . 15 Terrain Rammed . | . . . . . . . . . Walls Destroyed . | . . . . . . . . . Machines Disabled . | . . . . . . . . . Actions | -11 -10 -10 -8 -7 -7 -7 -7 -7 --------- Run | Yrd Mat Sub Mat Fac Low Low Zio Dee Total 7723 | 102 840 1105 1485 1150 376 279 1048 1338 Wait 547 | . 129 11 106 54 . . 31 216 Move 6419 | 77 584 1002 1128 1000 375 279 972 1002 Hop 8 | . . . . 7 1 . . . Pick Up 100 | 6 23 20 36 7 . . 4 4 Fast Attach 63 | 5 1 4 8 6 . . 2 37 Attach 30 | 2 3 3 11 4 . . 1 6 Detach 1 | . . . . . . . . 1 Swap 70 | 1 5 5 34 12 . . 4 9 Drop 128 | . 3 18 43 27 . . 5 32 Fire 292 | 11 91 41 118 . . . . 31 Melee 34 | . . . . 33 . . 1 . Ram . | . . . . . . . . . Kick . | . . . . . . . . . Crush 2 | . 1 . 1 . . . . . Escape Stasis . | . . . . . . . . . Rewire 1 | . . 1 . . . . . . Trap . | . . . . . . . . . Miscellaneous 28 | . . . . . . . 28 . Route ------- -11/Scrapyard -10/Materials (discovered 5 exits: [*Mat x2] / [*Min x2] / *Sub) -10/Subcaves (discovered 3 exits: *Mat x2 / *Rec) -8/Materials (discovered 2 exits: *Fac / Sto) -7/Factory (discovered 3 exits: *Fac / *Low x2) -7/Lower Caves -7/Lower Caves -7/Zion (discovered 2 exits: *Dee / [*Pro]) -7/Deep Caves (discovered 1 exit: *Pro) History --------- Turn | Location | Event 11 | -11/Scrapyard | Discovered new exit (range 14) 144 | -11/Scrapyard | Entered Materials 316 | -10/Materials | Build established: Mutant 332 | -10/Materials | Discovered new exit (range 15) 687 | -10/Materials | Discovered new exit (range 16) 984 | -10/Materials | Build established: Scavenger-Mutant 1036 | -10/Materials | Discovered new exit (range 16) 1155 | -10/Materials | Repaired Assault Rifle 1182 | -10/Materials | Repaired Med. Storage Unit 1302 | -10/Materials | Identified exit to Subcaves 1328 | -10/Materials | Discovered new exit (range 16) 1360 | -10/Materials | Learned 4 Subcaves zone layouts 1406 | -10/Materials | Learned 4 Subcaves zone layouts 1443 | -10/Materials | Learned location of 1 exit from Recycling 1506 | -10/Materials | Learned location of Mines (-9) 1527 | -10/Materials | Learned 2 Mines zone layouts 1603 | -10/Materials | Learned 2 Storage zone layouts 1658 | -10/Materials | Learned Storage trap positions 1873 | -10/Materials | Entered Subcaves 1915 | -10/Subcaves | Core integrity fell below 50% 2392 | -10/Subcaves | A swath of the cavern ceiling suddenly collapsed 3220 | -10/Subcaves | Build established: Mutant 3361 | -10/Subcaves | Shifting Twisted Machinery released Sub. Monowheel 3362 | -10/Subcaves | Shifting Twisted Machinery released Mak. Leg 3369 | -10/Subcaves | Discovered new exit (range 7) 3518 | -10/Subcaves | Visited Clippyterm 3528 | -10/Subcaves | Identified exit to Recycling 3528 | -10/Subcaves | Identified exit to Materials 3528 | -10/Subcaves | Learned Research security intel 4717 | -10/Subcaves | Learned location of Zion (-7) 4767 | -10/Subcaves | Disturbed a concealed Subdweller 4771 | -10/Subcaves | Core integrity fell below 20% 5619 | -10/Subcaves | Entered Materials 5619 | -8/Materials | Evolved 4 slots: Propulsion x2, Utility x2 5620 | -8/Materials | Identified exit to Storage 5932 | -8/Materials | Build established: Scavenger-Mutant 6518 | -8/Materials | Repaired Lgt. Treads 7988 | -8/Materials | Discovered new exit (range 13) 8419 | -8/Materials | First assault squad dispatched 8859 | -8/Materials | Entered Factory 8859 | -7/Factory | Evolved 2 slots: Power x1, Utility x1 8998 | -7/Factory | Fabricated Arm. Medium Treads? 9069 | -7/Factory | Discovered new exit (range 7) 9071 | -7/Factory | Identified exit to Lower Caves 9176 | -7/Factory | Garrison activated, responded to threat 9189 | -7/Factory | Discovered new exit (range 6) 9190 | -7/Factory | Identified exit to Factory 9228 | -7/Factory | Fabricated Plasma Cutter? 9307 | -7/Factory | Entered Lower Caves 9314 | -7/Lower Caves | Encountered a Warlord checkpoint 9409 | -7/Lower Caves | Attracted the attention of an 0b10 checkpoint 9409 | -7/Lower Caves | Discovered new exit (range 3) 9409 | -7/Lower Caves | Entered another Lower Caves area 9416 | -7/Lower Caves | Spotted B-75 Beast 9438 | -7/Lower Caves | Learned location of 1 exit from Factory 9450 | -7/Lower Caves | Identified exit to Zion 9485 | -7/Lower Caves | Entered Zion 9492 | -7/Zion | Given A8's code to call for help 9517 | -7/Zion | Discovered new exit (range 11) 9581 | -7/Zion | Received a hallucinogenic algorithm 9591 | -7/Zion | Build established: Hacker-Sprinter 9638 | -7/Zion | Gained Derelict followers 9685 | -7/Zion | Met Imprinter 9740 | -7/Zion | Enhanced Grunt warped into view, answering call for help 9744 | -7/Zion | Enhanced Grunt warped into view, answering call for help 9850 | -7/Zion | Discovered new exit (range 3) 9850 | -7/Zion | Saw the warning signs outside the Deep Caves entrance 9851 | -7/Zion | Identified exit to Deep Caves 9952 | -7/Zion | Entered Deep Caves 9952 | -7/Deep Caves | Accompanied by 7 allies 10076 | -7/Deep Caves | Build established: Scavenger-Mutant 10076 | -7/Deep Caves | Z-Facility disabled 10093 | -7/Deep Caves | Attacked by Z-Imprinter 10104 | -7/Deep Caves | Allies destroyed Z-Imprinter 10134 | -7/Deep Caves | Found Prototype Device 10134 | -7/Deep Caves | Identified Zio. Metafield Generator 10137 | -7/Deep Caves | Lost 3 allies 10352 | -7/Deep Caves | Found Prototype Protection 10352 | -7/Deep Caves | Identified Zio. Weapon Casing 10384 | -7/Deep Caves | Found Prototype Protection 10384 | -7/Deep Caves | Identified Zio. Heavy Carapace 10656 | -7/Deep Caves | Discovered new exit (range 6) 10659 | -7/Deep Caves | Identified exit to Proximity Caves 10716 | -7/Deep Caves | Spotted AG-39936 10741 | -7/Deep Caves | Destroyed AG-39936 10745 | -7/Deep Caves | Found Prototype Device 10745 | -7/Deep Caves | Identified Exp. Thermal Shield 10765 | -7/Deep Caves | Spotted AG-03199 10778 | -7/Deep Caves | Triggered Deep Caves wall 10781 | -7/Deep Caves | Exposed GOLEM chamber 10808 | -7/Deep Caves | Destroyed 15 combat bots 10812 | -7/Deep Caves | Core integrity fell below 50% 10829 | -7/Deep Caves | Core integrity fell below 20% 10837 | -7/Deep Caves | Destroyed 7 combat bots 10855 | -7/Deep Caves | Lost 12 parts (3p5n2u2w) 10986 | -7/Deep Caves | Destroyed by AG-03199 with Assembled Focal Cannon Last Messages --------------- 10938_ Acquired Zio. Light Carapace. 10945_ as-89206 destroyed. 10945_ Slug penetrates Wall. 10954_ Slug penetrates as-85897. 10954_ as-85897 destroyed. 10966_ Destroyed Asb. Hover Unit. 10969_ Slug penetrates as-35694. 10969_ as-35694 destroyed. 10969_ Zio. Light Carapace destroyed. 10976_ Zio. Light DM Reactor destroyed. 10977_ Chain reaction triggered in Prototype Reactor. 10978_ AG-03199 GOLEM Unit beginning Prototype Reactor integration. 10979_ Enh. Flexi-carbon Leg destroyed. 10979_ Exp. Heat Sink destroyed. 10979_ Zio. Laser-S destroyed. 10979_ EM Pulse Cannon destroyed. 10982_ AG-03199 misfires. 10985_ Slug penetrates AG-03199. Map ----- +----------------------------------------------------+ | | | | | | | | | | | | | | | | | | | | | | | | | | | | | | | | | | | | | | | | | | | | | ???????#???????????????####??????????????????????? | | ??????# ???????????????# #????###############???? | | ??????# ???????????????# #?#### ##??? | | ??????# ???????????????# @### #??? | | ?????## ###????#########%;## #### | | ???### ###### !!#%#;;%;# ## | | ???# # ! ;; | | ???# ! *[ | | #???# = ! ] | | #???### ! | | #?????## ! [* | | #?????# " """ """""" | | #??#### """""""""""""" | | ??## # """""""""""""" | | #?# | """""""""""""" | | #?#! # G """"""""""" | | #?##### """""""""""""" | | #????## """""""""""""" | | #????# """??????""""" | | #????## """??????"""" | | ???#### ""?????""*" | | ??## # "?????"""%=% | | ??# "?????""=!!* | | ??# "?????"""%/ | | ??# ???????""= | | ??## ???????"""" = | | ???### ??????????""""""% | | ?????# ???????????? * | +----------------------------------------------------+ Best States ------------- Heat Dissipation 86 Energy Generation 40 Energy Capacity 750 Matter Stores 300 Matter Capacity 300 Sight Range 16 Terrain Scan Range 16 Terrain Scan Density 10 Armor Coverage 1200 Resistance: TH 30 Core Shielding 20 Weapon Shielding 100 Evasion (%) 64 Recoil Reduction 4 Offensive Hacking 20 Defensive Hacking 10 Item Schematics ----------------- Imp. VTOL Module | -8/Materials | Scanalyzed Hacking Suite | -8/Materials | Scanalyzed Plasma Cutter | -7/Factory | Hacked Component Analysis Suite | -7/Zion | Archive Enh. Optical Array | -7/Zion | Archive Launcher Guidance Computer | -7/Zion | Archive Imp. Target Analyzer | -7/Zion | Archive Adv. Assault Cannon | -7/Zion | Archive Adv. Shield Generator | -7/Zion | Archive Imp. Core Shielding | -7/Zion | Archive Gauss Rifle | -7/Zion | Archive Imp. Actuator Array | -7/Zion | Archive Recalibrator | -7/Zion | Archive Arm. Medium Treads | -7/Zion | Archive Hvy. Pick | -7/Zion | Archive Gatling Laser | -7/Zion | Archive Imp. EM Pulse Cannon | -7/Zion | Archive Power Amplifier | -7/Zion | Archive Riot Gun | -7/Zion | Free Battle Cannon | -7/Zion | Free Enh. Flamer | -7/Zion | Free Phasing Sabre | -7/Zion | Free Robot Schematics ------------------ T-07 Excavator | -7/Zion | Archive K-01 Serf | -7/Zion | Archive B-48 Gladiator | -7/Zion | Archive H-88 Terminator | -7/Zion | Archive Fabricated ------------ Arm. Medium Treads | x2 | -7/Factory | Preloaded Plasma Cutter | x2 | -7/Factory Alien Tech Used ----------------- None Achievements -------------- None Challenges ------------ None Game ------ Seed HoverResetProtection Manual? 0 Play Time 01:31:56 Cumulative 221.2 hours Start 2024.08.09 @ 13:09:07 End 2024.08.09 @ 15:08:43 Sessions 1 Manual Loads 0 Difficulty Rogue Special Mode None Game No. 184 Rogue 179 Adventurer 5 Explorer 0 Win Type - Total 4 Types 2/0/2/0/0/0/0/0/0 Lore% 59 Gallery% 77 Achievement% 62 Wizard Run 0 Options --------- Layout 2 ASCII 0 Keyboard 0 Movement Mouse Keybinds 0 Fullscreen 2 Font 24/Smallcaps Map View 50x44 Zoom Use 0% Tactical HUD 1 Map Filters NONE Filters NONE Steam 1 RUN: 12a680f3-5f61-4c88-9c2d-3243bbdd767c